bitfinex-derivatives/quotes_SOLF0:USTF0_20250527
["timestamp","ask_amount","ask_price","bid_price","bid_amount"]
[1748322567767,5.7823,172.89,172.84,5.7838]
[1748322567966,5.7825,172.88,172.84,5.7838]
[1748322568569,5.7828,172.88,172.83,120.3241]
[1748322569363,5.7828,172.88,172.84,5.7838]
[1748322569565,5.82558648,172.9,172.83,114.54]
[1748322569969,5.82558648,172.9,172.86,5.7829]
[1748322570963,0.04368648,172.9,172.87,114.56]
[1748322571567,0.04368648,172.9,172.88,5.7822]
[1748322573071,0.04368648,172.9,172.89,5.7822]
[1748322581478,0.04368648,172.9,172.87,120.3426]
[1748322581984,0.04368648,172.9,172.87,114.56]
[1748322582379,5.82558648,172.9,172.87,114.56]
[1748322582781,0.04368648,172.9,172.87,114.56]
[1748322583580,5.7825,172.88,172.87,114.56]
[1748322583873,5.7825,172.88,172.84,114.56]
[1748322584378,0.04368648,172.9,172.84,114.56]
[1748322585083,5.7832,172.86,172.84,114.56]
[1748322585382,0.04368648,172.9,172.84,114.56]
[1748322586281,0.04368648,172.9,172.81,114.56]
[1748322586680,2.56317468,172.89,172.82,5.7843]
[1748322587083,5.7831,172.87,172.82,5.7843]
[1748322587383,0.03639644,172.86,172.83,5.7842]
[1748322588986,5.7836,172.85,172.81,114.56]
[1748322589196,0.03639644,172.86,172.79,114.58]
[1748322590286,5.7847,172.82,172.79,114.58]
[1748322590487,5.82356457,172.82,172.79,114.58]
[1748322591182,120.02735169,172.82,172.69,1.3150767]
[1748322591388,0.03973568,172.77,172.69,1.3150767]
[1748322592885,0.03973568,172.77,172.68,114.58]
[1748322593787,5.40848712,172.75,172.58,1.3150767]
[1748322593977,0.03751244,172.68,172.58,1.3150767]
[1748322594587,0.03751244,172.68,172.58,6.72356382]
[1748322594788,0.03751244,172.68,172.58,1.3150767]
[1748322594984,0.03751244,172.68,172.61,5.7916]
[1748322595185,0.03751244,172.68,172.62,115.66]
[1748322595385,0.03751244,172.68,172.63,5.7908]
[1748322595588,0.03751244,172.68,172.62,115.66]
[1748322596289,0.03751244,172.68,172.63,5.7909]
[1748322596590,0.03751244,172.68,172.62,115.66]
[1748322596986,0.03751244,172.68,172.63,5.40848712]
[1748322597287,0.03751244,172.68,172.66,5.7896]
[1748322597488,0.03751244,172.68,172.66,121.4896]
[1748322597991,0.03751244,172.68,172.67,5.7896]
[1748322600385,115.72,172.79,172.72,5.7876]
[1748322600591,5.40848712,172.8,172.7,115.72]
[1748322600789,115.72,172.8,172.71,115.72]
[1748322600990,115.72,172.8,172.74,5.7869]
[1748322601191,115.72,172.8,172.71,115.72]
[1748322601391,0.0372475,172.77,172.74,0.04322606]
[1748322601585,0.0372475,172.77,172.75,5.7867]
[1748322602689,0.0372475,172.77,172.74,0.04322606]
[1748322605894,5.7869,172.75,172.74,0.04322606]
[1748322608592,5.7866,172.76,172.74,0.04322606]
[1748322608793,0.0372475,172.77,172.74,0.04322606]
[1748322609093,5.7869,172.75,172.74,0.04322606]
[1748322611801,5.7866,172.76,172.74,0.04322606]
[1748322613898,5.8235475,172.77,172.74,0.04322606]
[1748322615297,0.0372475,172.77,172.74,5.83012606]
[1748322616395,0.0372475,172.77,172.75,5.7869]
[1748322620704,0.0372475,172.77,172.76,5.7866]
[1748322621107,0.0372475,172.77,172.74,115.76322606]
[1748322621708,0.0372475,172.77,172.74,0.04322606]
[1748322622401,5.7869,172.75,172.74,0.04322606]
[1748322623105,5.8236475,172.77,172.74,0.04322606]
[1748322624506,0.0372475,172.77,172.74,0.04322606]
[1748322624706,0.0372475,172.77,172.75,5.7866]
[1748322624902,0.0372475,172.77,172.75,116.22]
[1748322625509,0.0372475,172.77,172.76,5.7865]
[1748322630414,4.75e-05,172.77,172.76,5.7865]
[1748322631318,4.75e-05,172.77,172.76,115.7065]
[1748322642624,5.7834,172.86,172.76,109.92]
[1748322642825,5.8383,172.88,172.76,109.92]
[1748322643020,5.8383,172.88,172.75,116.22]
[1748322643224,5.42639784,172.86,172.75,116.22]
[1748322643428,118.75642097,172.85,172.75,116.22]
[1748322643725,5.7855,172.79,172.78,0.0414788]
[1748322643922,5.7855,172.79,172.75,116.22]
[1748322644224,0.04004988,172.82,172.75,116.22]
[1748322644225,2.0492,172.81,172.75,116.22]
[1748322644425,5.7861,172.78,172.75,116.22]
[1748322644817,5.7863,172.77,172.75,116.26076023]
[1748322645021,0.04296821,172.78,172.75,113.11096023]
[1748322645630,5.7866,172.76,172.75,113.11096023]
[1748322645829,5.7866,172.76,172.75,109.96096023]
[1748322646225,5.7866,172.76,172.75,0.04076023]
[1748322646434,5.7875,172.74,172.72,116.2]
[1748322646731,0.04296821,172.78,172.72,116.2]
[1748322647233,5.7871,172.75,172.72,116.2]
[1748322648032,5.7873,172.74,172.72,116.2]
[1748322648225,0.04296821,172.78,172.72,116.2]
[1748322648628,5.787,172.75,172.72,116.2]
[1748322652536,0.04296821,172.78,172.72,116.2]
[1748322653436,5.787,172.75,172.72,116.2]
[1748322653834,0.04296821,172.78,172.72,116.2]
[1748322654034,5.7873,172.74,172.72,116.2]
[1748322654339,0.04296821,172.78,172.72,116.2]
[1748322654541,5.7867,172.76,172.72,121.9878]
[1748322654835,0.04296821,172.78,172.72,116.2]
[1748322655439,0.04296821,172.78,172.72,121.62639784]
[1748322656135,0.04296821,172.78,172.77,5.7862]
[1748322659849,0.04296821,172.78,172.76,116.34]
[1748322660541,0.04296821,172.78,172.76,122.1263]
[1748322660747,0.04296821,172.78,172.76,116.34]
[1748322660946,5.82886821,172.78,172.76,116.34]
[1748322661849,0.04296821,172.78,172.76,116.34]
[1748322663150,0.04296821,172.78,172.77,5.7862]
[1748322664454,0.04296821,172.78,172.76,116.34]
[1748322664750,0.04296821,172.78,172.73,116.32]
[1748322664954,5.7866,172.76,172.73,116.32]
[1748322665152,0.04296821,172.78,172.73,116.32]
[1748322665547,5.82886821,172.78,172.74,5.787]
[1748322666651,0.04296821,172.78,172.75,5.7868]
[1748322666851,0.04296821,172.78,172.73,116.32]
[1748322667253,5.82886821,172.78,172.73,116.32]
[1748322667455,0.04296821,172.78,172.73,116.32]
[1748322668454,0.04296821,172.78,172.76,5.7865]
[1748322670262,0.04296821,172.78,172.73,116.32]
[1748322670658,0.04296821,172.78,172.77,5.7862]
[1748322670859,0.04296821,172.78,172.77,116.34]
[1748322675360,5.82886821,172.78,172.77,116.34]
[1748322683868,5.7864,172.77,172.74,116.34]
[1748322688475,5.7869,172.75,172.74,116.34]
[1748322688972,5.7868,172.76,172.74,116.34]
[1748322691178,0.04296821,172.78,172.74,116.34]
[1748322693285,5.82896821,172.78,172.75,5.7866]
[1748322693484,0.04296821,172.78,172.75,5.7866]
[1748322694485,0.04296821,172.78,172.76,5.7865]
[1748322696180,0.04296821,172.78,172.75,5.7868]
[1748322696482,0.04296821,172.78,172.74,116.34]
[1748322696683,5.82916821,172.78,172.74,116.34]
[1748322696885,0.04296821,172.78,172.74,116.34]
[1748322698388,0.04296821,172.78,172.76,5.7865]
[1748322701386,0.04296821,172.78,172.77,5.7862]
[1748322705094,6.821e-05,172.78,172.77,5.7862]
[1748322705495,11.08590943,172.88,172.84,5.7837]
[1748322705693,5.30310943,172.88,172.84,5.7837]
[1748322705996,11.08570943,172.88,172.84,5.7837]
[1748322706493,5.34305146,172.88,172.85,5.7834]
[1748322707796,0.03994203,172.88,172.85,5.7834]
[1748322708092,0.03994203,172.88,172.84,0.03704575]
[1748322708093,0.03994203,172.88,172.87,5.7829]
[1748322708592,0.03994203,172.88,172.84,0.03704575]
[1748322709793,5.7829,172.87,172.84,0.03704575]
[1748322710497,5.7833,172.86,172.84,0.03704575]
[1748322711296,5.783,172.87,172.84,0.03704575]
[1748322711997,5.82264203,172.88,172.84,0.03704575]
[1748322712396,0.03994203,172.88,172.84,0.03704575]
[1748322712697,5.783,172.87,172.84,0.03704575]
[1748322712898,5.783,172.87,172.84,5.82084575]
[1748322713297,0.03994203,172.88,172.84,0.03704575]
[1748322713497,0.03994203,172.88,172.85,5.7835]
[1748322715099,5.82244203,172.88,172.85,5.7835]
[1748322718100,5.82244203,172.88,172.84,5.82084575]
[1748322720703,5.7829,172.87,172.84,0.03704575]
[1748322722202,0.03994203,172.88,172.84,0.03704575]
[1748322722598,2.04614203,172.88,172.84,0.03704575]
[1748322722801,5.7835,172.85,172.84,0.03704575]
[1748322733205,5.7829,172.87,172.84,0.03704575]
[1748322734013,0.03994203,172.88,172.84,0.03704575]
[1748322736510,0.03994203,172.88,172.85,5.7835]
[1748322736716,0.03994203,172.88,172.86,115.46]
[1748322738710,0.03994203,172.88,172.86,225.32]
[1748322740306,0.03994203,172.88,172.87,5.7829]
[1748322753621,5.30310943,172.97,172.87,5.42639784]
[1748322753821,5.30310943,172.97,172.9,5.42639784]
[1748322754125,5.30310943,172.97,172.94,5.7805]
[1748322754326,5.30310943,172.97,172.95,224.88]
[1748322754625,11.08270943,172.97,172.95,224.88]
[1748322754926,5.7796,172.97,172.95,224.88]
[1748322755129,5.7799,172.96,172.95,224.88]
[1748322756931,5.7799,172.96,172.95,115.04]
[1748322759932,5.7802,172.95,172.94,0.03653174]
[1748322767526,5.7802,172.95,172.94,3.174e-05]
[1748322768537,8.32702119,172.95,172.94,3.174e-05]
[1748322770233,5.7821,172.9,172.88,224.84]
[1748322770833,5.7822,172.89,172.88,224.84]
[1748322771035,5.7822,172.89,172.88,115.02]
[1748322771838,5.7822,172.89,172.87,0.04212297]
[1748322772039,5.7825,172.88,172.87,0.04212297]
[1748322780743,8.33434882,172.88,172.87,0.04212297]
[1748322781249,5.7825,172.88,172.87,0.04212297]
[1748322783354,8.33426207,172.88,172.87,0.04212297]
[1748322784954,8.33340258,172.88,172.87,0.04212297]
[1748322785349,2.55090258,172.88,172.87,5.82502297]
[1748322785649,0.03726142,172.9,172.87,0.04212297]
[1748322785951,0.03726142,172.9,172.88,5.7825]
[1748322786354,0.03726142,172.9,172.87,0.04212297]
[1748322786854,0.03726142,172.9,172.88,5.7825]
[1748322788154,0.03726142,172.9,172.87,5.82492297]
[1748322788757,5.81946142,172.9,172.87,0.04212297]
[1748322788952,0.03726142,172.9,172.87,0.04212297]
[1748322790457,5.7824,172.89,172.87,0.04212297]
[1748322790852,0.03726142,172.9,172.87,0.04212297]
[1748322791252,5.7825,172.88,172.87,0.04212297]
[1748322805564,8.33747178,172.88,172.87,0.04212297]
[1748322810569,13.11029478,172.88,172.87,0.04212297]
[1748322810866,13.11269795,172.88,172.87,0.04212297]
[1748322814369,13.11423979,172.88,172.87,0.04212297]
[1748322815872,16.5822747,172.88,172.87,0.04212297]
[1748322817774,7.33173979,172.88,172.87,0.04212297]
[1748322818170,7.33344741,172.88,172.87,0.04212297]
[1748322818575,2.56062441,172.88,172.87,0.04212297]
[1748322818875,5.7822,172.89,172.87,0.04212297]
[1748322819377,2.56153727,172.88,172.87,0.04212297]
[1748322819876,2.56143999,172.88,172.87,0.04212297]
[1748322820378,5.7822,172.89,172.87,0.04212297]
[1748322827179,8.34359617,172.88,172.87,0.04212297]
[1748322827375,8.34349607,172.88,172.87,0.04212297]
[1748322828479,13.12371793,172.88,172.87,0.04212297]
[1748322829081,13.12367261,172.88,172.87,0.04212297]
[1748322829687,13.12359653,172.88,172.87,0.04212297]
[1748322830287,7.34109653,172.88,172.87,0.04212297]
[1748322831175,4.78022186,172.88,172.87,0.04212297]
[1748322831984,5.81916142,172.9,172.87,0.04212297]
[1748322832585,2.56223275,172.89,172.87,0.04212297]
[1748322832985,5.81916142,172.9,172.87,0.04212297]
[1748322833686,0.03726142,172.9,172.87,5.82472297]
[1748322833886,2.56317501,172.89,172.87,5.82472297]
[1748322834682,0.03726142,172.9,172.87,5.82472297]
[1748322834885,0.03726142,172.9,172.87,120.70472297]
[1748322835086,0.03726142,172.9,172.87,114.92212297]
[1748322836288,0.03726142,172.9,172.88,5.7823]
[1748322837086,0.03726142,172.9,172.89,5.7822]
[1748322837386,0.03726142,172.9,172.88,109.84]
[1748322842894,0.03726142,172.9,172.88,115.6224]
[1748322843498,0.03726142,172.9,172.89,5.7822]
[1748322844499,0.03726142,172.9,172.88,115.6224]
[1748322844891,0.03726142,172.9,172.88,109.84]
[1748322845893,0.03726142,172.9,172.88,115.6224]
[1748322849798,5.7823,172.89,172.87,114.92212297]
[1748322849991,0.03726142,172.9,172.87,114.92212297]
[1748322850192,0.03726142,172.9,172.87,224.74212297]
[1748322851394,5.7825,172.88,172.87,224.74212297]
[1748322852799,5.7825,172.88,172.87,114.92212297]
[1748322857802,0.03726142,172.9,172.87,114.92212297]
[1748322858002,0.03726142,172.9,172.87,224.76212297]
[1748322858003,5.7823,172.89,172.87,224.76212297]
[1748322859301,0.03726142,172.9,172.87,224.76212297]
[1748322860004,0.03726142,172.9,172.89,5.7822]
[1748322861003,0.03726142,172.9,172.88,5.7825]
[1748322861404,0.03726142,172.9,172.87,224.76212297]
[1748322862704,5.81926142,172.9,172.87,230.54482297]
[1748322862904,0.03726142,172.9,172.87,224.76212297]
[1748322863212,5.7825,172.89,172.87,224.76212297]
[1748322863706,0.03726142,172.9,172.87,224.76212297]
[1748322864013,5.7825,172.88,172.87,114.92212297]
[1748322864202,5.7825,172.88,172.87,224.76212297]
[1748322864704,5.7823,172.89,172.87,114.92212297]
[1748322864901,0.03726142,172.9,172.87,224.76212297]
[1748322865310,0.03726142,172.9,172.88,5.7823]
[1748322869711,0.03726142,172.9,172.89,5.7822]
[1748322871100,11.39560943,172.98,172.92,5.781]
[1748322871306,2.56058511,172.97,172.93,224.64]
[1748322871604,5.30310943,172.98,172.94,224.64]
[1748322871815,2.56013608,172.97,172.94,224.64]
[1748322872010,5.30310943,172.98,172.94,224.64]
[1748322872306,5.34688262,172.98,172.94,224.68080898]
[1748322872815,5.34688262,172.98,172.97,5.7795]
[1748322873906,0.04377319,172.98,172.97,5.7795]
[1748322874511,0.04377319,172.98,172.96,5.7798]
[1748322875209,0.04377319,172.98,172.97,5.7795]
[1748322875511,0.04377319,172.98,172.94,224.68080898]
[1748322876314,0.04377319,172.98,172.96,5.7796]
[1748322877413,0.04377319,172.98,172.95,5.7801]
[1748322880018,0.04377319,172.98,172.96,5.7798]
[1748322880321,5.82307319,172.98,172.94,114.84080898]
[1748322880615,5.82307319,172.98,172.95,109.8]
[1748322880919,0.04377319,172.98,172.95,115.5802]
[1748322882515,0.04377319,172.98,172.96,5.7797]
[1748322883025,0.04377319,172.98,172.95,115.5801]
[1748322884924,0.04377319,172.98,172.96,5.7798]
[1748322885625,0.04377319,172.98,172.95,115.5801]
[1748322885826,0.04377319,172.98,172.95,109.8]
[1748322886423,0.04377319,172.98,172.95,115.5802]
[1748322888625,5.82297319,172.98,172.95,109.8]
[1748322888824,0.04377319,172.98,172.95,109.8]
[1748322890026,0.04377319,172.98,172.95,115.5802]
[1748322892229,0.04377319,172.98,172.95,109.8]
[1748322893126,0.04377319,172.98,172.97,5.7795]
[1748322902032,0.04377319,172.98,172.97,9.12377687]
[1748322903942,0.04377319,172.98,172.97,5.7795]
[1748322919050,0.04377319,172.98,172.94,114.84080898]
[1748322919251,5.82327319,172.98,172.94,114.84080898]
[1748322919454,0.04377319,172.98,172.94,114.84080898]
[1748322919943,5.7802,172.95,172.94,0.04080898]
[1748322920652,5.7802,172.95,172.91,114.68]
[1748322920653,5.7811,172.93,172.91,114.68]
[1748322920848,1.9384,172.97,172.91,114.68]
[1748322921051,2.56512624,172.96,172.88,114.68]
[1748322921257,2.56512624,172.95,172.87,114.68]
[1748322921555,2.56512624,172.94,172.86,120.4632]
[1748322921849,0.04258283,172.92,172.88,0.04005158]
[1748322922156,1.93278283,172.92,172.88,0.04005158]
[1748322922354,5.7818,172.91,172.88,0.04005158]
[1748322922648,1.93278283,172.92,172.88,0.04005158]
[1748322923048,5.7821,172.9,172.88,0.04005158]
[1748322923450,5.7825,172.89,172.86,114.68]
[1748322923655,2.0424,172.91,172.81,1.3150767]
[1748322923656,114.7,172.9,172.81,1.3150767]
[1748322923845,114.7,172.9,172.8,114.7]
[1748322924048,5.7839,172.84,172.8,114.7]
[1748322924246,2.55766616,172.89,172.8,114.7]
[1748322924247,114.7,172.9,172.8,114.7]
[1748322924452,0.03713149,172.87,172.8,114.7]
[1748322924757,5.7841,172.84,172.8,114.7]
[1748322926052,5.7841,172.84,172.8,120.4852]
[1748322926556,5.7841,172.84,172.8,114.7]
[1748322926855,1.9605,172.86,172.8,114.7]
[1748322927952,5.7839,172.84,172.8,120.4852]
[1748322928152,1.9605,172.86,172.8,120.4852]
[1748322928354,1.9605,172.86,172.8,114.7]
[1748322929955,1.9605,172.86,172.82,5.7843]
[1748322930451,0.03713149,172.87,172.8,114.7]
[1748322930958,0.03713149,172.87,172.86,5.7832]
[1748322931155,0.03713149,172.87,172.86,120.4832]
[1748322935864,0.03713149,172.87,172.86,114.7]
[1748322937458,0.03713149,172.87,172.83,120.4841]
[1748322937658,0.03713149,172.87,172.83,114.7]
[1748322937853,0.03713149,172.87,172.84,5.7838]
[1748322941957,5.82003149,172.87,172.83,114.7]
[1748322942162,0.03713149,172.87,172.83,114.7]
[1748322942664,0.03713149,172.87,172.86,5.7832]
[1748322942866,0.03713149,172.87,172.83,114.7]
[1748322943064,0.03713149,172.87,172.85,5.7835]
[1748322943265,0.03713149,172.87,172.83,114.7]
[1748322943666,0.03713149,172.87,172.84,5.7838]
[1748322945268,114.75713149,172.87,172.76,85.24129928]
[1748322945466,0.04390994,172.83,172.76,85.24129928]
[1748322946367,5.7852,172.81,172.76,91.02769928]
[1748322946564,5.7852,172.81,172.77,114.72]
[1748322947669,5.7852,172.8,172.77,114.72]
[1748322947967,0.04390994,172.83,172.77,114.72]
[1748322948163,5.7855,172.8,172.77,114.72]
[1748322948560,0.04390994,172.83,172.77,114.72]
[1748322948764,5.7855,172.8,172.77,114.72]
[1748322949269,5.7855,172.79,172.77,114.72]
[1748322950469,5.7853,172.8,172.77,114.72]
[1748322951171,5.7858,172.79,172.77,114.72]
[1748322951773,0.04390994,172.83,172.77,114.72]
[1748322952366,5.7859,172.78,172.77,114.72]
[1748322952565,0.03658119,172.79,172.76,85.24129928]
[1748322953070,5.7862,172.77,172.76,85.24129928]
[1748322960873,0.03658119,172.79,172.76,85.24129928]
[1748322961575,5.82218119,172.79,172.76,85.24129928]
[1748322961973,0.03658119,172.79,172.76,85.24129928]
[1748322963279,5.82218119,172.79,172.76,85.24129928]
[1748322964973,0.03658119,172.79,172.76,85.24129928]
[1748322965679,5.7862,172.77,172.76,85.24129928]
[1748322968376,5.786,172.78,172.76,85.24129928]
[1748322969782,743.80808436,172.77,172.58,1.3150767]
[1748322969996,5.24589142,172.68,172.58,1.3150767]
[1748322970182,0.03711262,172.65,172.58,1.3150767]
[1748322970377,5.7915,172.62,172.58,1.3150767]
[1748322970682,0.03936702,172.63,172.58,1.3150767]
[1748322972680,0.03936702,172.63,172.6,5.7916]
[1748322972986,0.03936702,172.63,172.61,114.76]
[1748322973286,0.03936702,172.63,172.61,120.5515]
[1748322973485,2.0822,172.72,172.62,499.92]
[1748322973680,2.0822,172.72,172.62,609.84]
[1748322973878,5.7892,172.69,172.63,5.7906]
[1748322974081,5.7892,172.69,172.62,609.84]
[1748322974281,5.7892,172.69,172.63,5.7908]
[1748322974475,0.04363547,172.68,172.64,0.03883337]
[1748322974677,0.04363547,172.68,172.65,114.78]
[1748322979090,5.83303547,172.68,172.65,114.78]
[1748322979988,0.04363547,172.68,172.64,0.03883337]
[1748322980188,0.04363547,172.68,172.65,114.8]
[1748322980388,0.04363547,172.68,172.64,0.03883337]
[1748322980586,5.79,172.66,172.64,0.03883337]
[1748322980779,0.04363547,172.68,172.64,0.03883337]
[1748322980983,5.7899,172.66,172.65,114.8]
[1748322981588,5.7899,172.66,172.64,0.03883337]
[1748322981792,5.7899,172.66,172.65,114.8]
[1748322982089,5.7899,172.66,172.64,0.03883337]
[1748322982291,5.7899,172.66,172.65,114.8]
[1748322983695,5.7902,172.65,172.64,0.03883337]
[1748322983995,5.7902,172.65,172.64,114.85883337]
[1748322984291,5.7896,172.67,172.64,114.85883337]
[1748322984497,0.04363547,172.68,172.64,114.85883337]
[1748322985298,5.7902,172.65,172.64,114.85883337]
[1748322990996,5.7902,172.65,172.64,0.03883337]
[1748322991196,5.7902,172.65,172.64,117.49883337]
[1748322991597,5.7902,172.65,172.64,0.03883337]
[1748323007412,5.7919,172.6,172.55,500.2]
[1748323007603,5.7919,172.6,172.56,117.48]
[1748323007808,1.9483,172.66,172.56,123.2732]
[1748323008099,1.9483,172.66,172.56,117.48]
[1748323008304,2.0656,172.65,172.56,117.48]
[1748323008506,0.03660834,172.62,172.57,5.7929]
[1748323008700,5.82790834,172.62,172.57,5.7929]
[1748323009203,0.03660834,172.62,172.56,117.48]
[1748323010007,0.03660834,172.62,172.58,5.7923]
[1748323011108,5.82790834,172.62,172.58,5.7923]
[1748323013015,0.03660834,172.62,172.56,123.2731]
[1748323013609,5.7921,172.6,172.56,123.2731]
[1748323013911,5.7921,172.6,172.57,5.7929]
[1748323014112,0.03660834,172.62,172.57,5.7929]
[1748323015312,5.7917,172.61,172.57,5.7929]
[1748323015715,0.03660834,172.62,172.56,117.48]
[1748323015910,2.55833168,172.61,172.55,500.2]
[1748323016107,0.03660834,172.62,172.56,117.5]
[1748323016308,5.792,172.6,172.56,117.5]
[1748323016510,0.03660834,172.62,172.56,117.5]
[1748323016712,2.55789412,172.61,172.56,117.5]
[1748323016911,0.03660834,172.62,172.56,123.2933]
[1748323017111,2.55794473,172.61,172.56,117.5]
[1748323017311,0.03660834,172.62,172.56,117.5]
[1748323017614,2.55745281,172.61,172.56,117.5]
[1748323017809,0.03660834,172.62,172.56,117.5]
[1748323018010,5.7922,172.6,172.56,117.5]
[1748323018209,2.55679459,172.59,172.46,1.3150767]
[1748323018410,0.04237407,172.54,172.48,2.0774]
[1748323018612,0.03835932,172.53,172.52,5.7945]
[1748323018811,0.04040359,172.54,172.52,123.2945]
[1748323019209,0.04040359,172.54,172.53,117.5]
[1748323020217,0.04040359,172.54,172.53,123.2943]
[1748323020709,0.04040359,172.54,172.53,117.5]
[1748323021111,0.04040359,172.54,172.52,117.3]
[1748323021311,0.04040359,172.54,172.53,123.0943]
[1748323023414,0.04040359,172.54,172.47,1.919]
[1748323023620,0.04040359,172.54,172.48,117.3]
[1748323024119,5.83460359,172.54,172.5,5.7951]
[1748323024513,5.83460359,172.54,172.5,5.7952]
[1748323027719,5.83460359,172.54,172.51,5.7949]
[1748323027921,0.04040359,172.54,172.52,117.32]
[1748323029023,5.83430359,172.54,172.52,117.32]
[1748323029722,0.04040359,172.54,172.46,500.26]
[1748323029925,0.04040359,172.54,172.47,117.32]
[1748323030627,0.04040359,172.54,172.49,5.7955]
[1748323030924,5.7948,172.52,172.48,5.7959]
[1748323031225,0.04040359,172.54,172.47,117.32]
[1748323031621,5.7946,172.52,172.47,117.32]
[1748323031921,0.04040359,172.54,172.47,117.32]
[1748323032829,5.795,172.51,172.47,123.1162]
[1748323033326,5.7947,172.52,172.47,123.1162]
[1748323033520,0.04040359,172.54,172.47,123.1162]
[1748323033715,0.04040359,172.54,172.47,117.32]
[1748323034118,5.7953,172.5,172.47,117.32]
[1748323034322,5.83516807,172.5,172.47,117.32]
[1748323034528,5.7959,172.49,172.47,117.34]
[1748323035322,0.03986807,172.5,172.47,117.34]
[1748323035521,5.83516807,172.5,172.47,117.34]
[1748323035729,0.03986807,172.5,172.47,117.34]
[1748323035929,5.7963,172.47,172.43,117.34]
[1748323036120,0.03986807,172.5,172.43,117.34]
[1748323036725,0.03986807,172.5,172.45,5.7967]
[1748323037031,0.03986807,172.5,172.43,117.34]
[1748323039232,5.7957,172.49,172.44,5.7972]
[1748323039926,5.7957,172.49,172.43,117.34]
[1748323040127,5.796,172.48,172.43,117.34]
[1748323040631,5.796,172.48,172.43,123.1374]
[1748323040932,0.03986807,172.5,172.43,117.34]
[1748323041625,5.796,172.48,172.43,117.34]
[1748323042025,0.03986807,172.5,172.43,117.34]
[1748323042232,5.796,172.48,172.43,117.34]
[1748323042430,0.03986807,172.5,172.44,5.7972]
[1748323043031,0.03986807,172.5,172.43,117.34]
[1748323044030,5.83516807,172.5,172.45,5.7967]
[1748323044833,5.7957,172.49,172.45,5.7967]
[1748323045730,0.03986807,172.5,172.38,504.8232]
[1748323046032,0.04426861,172.46,172.39,117.38]
[1748323046234,5.84116861,172.46,172.41,5.798]
[1748323046634,5.84116861,172.46,172.39,117.38]
[1748323046827,5.84116861,172.46,172.41,5.7983]
[1748323047030,0.04426861,172.46,172.39,117.38]
[1748323047526,0.04426861,172.46,172.42,5.7978]
[1748323047728,0.04426861,172.46,172.43,117.38]
[1748323048030,0.04426861,172.46,172.43,123.1775]
[1748323050428,0.04426861,172.46,172.43,117.38]
[1748323051127,0.04426861,172.46,172.45,5.7969]
[1748323059139,6.861e-05,172.46,172.45,5.7969]
[1748323069552,7.7418,172.55,172.44,500.6210034]
[1748323069850,4.0038,172.58,172.46,5.25089639]
[1748323070051,2.56309796,172.57,172.47,229.26]
[1748323070349,4.0038,172.58,172.47,229.26]
[1748323070550,0.03828771,172.54,172.51,0.04019397]
[1748323070750,0.03828771,172.54,172.52,119.18]
[1748323071253,0.03828771,172.54,172.53,5.7943]
[1748323073351,0.03828771,172.54,172.51,0.04019397]
[1748323073552,0.03828771,172.54,172.53,119.18]
[1748323078566,0.03828771,172.54,172.51,0.04019397]
[1748323078968,5.7945,172.53,172.51,0.04019397]
[1748323081666,5.83228771,172.54,172.51,0.04019397]
[1748323082170,0.03828771,172.54,172.51,0.04019397]
[1748323082865,5.7944,172.53,172.51,0.04019397]
[1748323083068,0.03828771,172.54,172.51,0.04019397]
[1748323083372,0.03828771,172.54,172.51,5.83479397]
[1748323083668,0.03828771,172.54,172.51,0.04019397]
[1748323084370,0.03828771,172.54,172.52,5.7945]
[1748323084572,0.03828771,172.54,172.51,0.04019397]
[1748323085172,0.03828771,172.54,172.52,5.7943]
[1748323086767,0.03828771,172.54,172.53,5.7943]
[1748323089579,8.771e-05,172.54,172.53,5.7943]
[1748323089775,1.9558,172.6,172.52,5.25089639]
[1748323090677,0.04447778,172.58,172.52,5.25089639]
[1748323090978,0.04447778,172.58,172.51,0.04019397]
[1748323091771,5.7942,172.54,172.51,0.04019397]
[1748323091980,0.0384349,172.54,172.51,0.04019397]
[1748323093681,0.0384349,172.54,172.51,5.83489397]
[1748323093980,0.0384349,172.54,172.51,0.04019397]